fUST/lending_fUST_20250718
["ID","MTS","AMOUNT","RATE_DAILY","PERIOD"]
[372885524,1752792658497,-558.89,0.00021153,2]
[372885525,1752792658507,-509.26,0.00021153,2]
[372885526,1752792658517,-504.22,0.00021153,2]
[372885527,1752792658528,-553.36,0.00021153,2]
[372885528,1752792658538,-460.0,0.00021153,2]
[372885529,1752792658549,-683.62,0.00021153,2]
[372885530,1752792658559,-651.31,0.00021153,2]
[372885531,1752792658568,-623.43,0.00021153,2]
[372885532,1752792658578,-1119.9,0.00021153,2]
[372885533,1752792658587,-620.89,0.00021153,2]
[372885534,1752792658597,-460.0,0.00021153,2]
[372885535,1752792658607,-790.48,0.00021153,2]
[372885536,1752792658616,-709.94,0.00021153,2]
[372885537,1752792658626,-604.38,0.00021153,2]
[372885538,1752792658635,-460.0,0.00021156,2]
[372885539,1752792658644,-491.24,0.00021156,2]
[372885540,1752792658664,-614.19,0.00021156,2]
[372885541,1752792658673,-2122.95118193,0.00021156,2]
[372885542,1752792658685,-2817.98881807,0.00021156,2]
[372885543,1752792658695,-853.37,0.00021156,2]
[372885544,1752792658704,-557.14,0.00021156,2]
[372885545,1752792658713,-460.0,0.00021156,2]
[372885546,1752792658723,-460.0,0.00021156,2]
[372885547,1752792658732,-546.72,0.00021156,2]
[372885548,1752792658742,-460.0,0.00021157,2]
[372885549,1752792658751,-467.83,0.00021157,2]
[372885550,1752792658760,-577.94,0.00021157,2]
[372885551,1752792658770,-460.0,0.00021157,2]
[372885552,1752792658781,-460.0,0.00021157,2]
[372885553,1752792658790,-1023.54,0.00021157,2]
[372885554,1752792658800,-460.0,0.00021157,2]
[372885555,1752792658810,-600.0,0.00021192,2]
[372885556,1752792658819,-460.0,0.000214,2]
[372885557,1752792658829,-460.0,0.000214,2]
[372885558,1752792658839,-1285.9,0.000214,2]
[372885559,1752792658849,-3844.7,0.000214,2]
[372885560,1752792658859,-2390.87,0.00021403,2]
[372885561,1752792658869,-883.0,0.00021403,2]
[372885562,1752792658878,-460.0,0.00021403,2]
[372885563,1752792658887,-2574.35,0.00021403,2]
[372885564,1752792658897,-460.0,0.00021403,2]
[372885565,1752792658906,-460.0,0.00021403,2]
[372885566,1752792658915,-1471.77,0.00021403,2]
[372885567,1752792658925,-558.89,0.00021427,2]
[372885568,1752792658934,-509.26,0.00021427,2]
[372885569,1752792658944,-504.22,0.00021427,2]
[372885570,1752792658953,-553.36,0.00021427,2]
[372885571,1752792658962,-460.0,0.00021427,2]
[372885572,1752792658972,-683.62,0.00021427,2]
[372885573,1752792658981,-651.31,0.00021427,2]
[372885574,1752792658990,-623.43,0.00021427,2]
[372885575,1752792658999,-1119.9,0.00021427,2]
[372885576,1752792659008,-620.89,0.00021427,2]
[372885577,1752792659018,-355.56146136,0.00021427,2]
[372885578,1752792659028,-790.48,0.00021427,2]
[372885579,1752792659037,-709.94,0.00021427,2]
[372885580,1752792659047,-604.38,0.00021427,2]
[372885581,1752792659055,-460.0,0.0002143,2]
[372885582,1752792659065,-491.24,0.0002143,2]
[372885583,1752792659074,-614.19,0.0002143,2]
[372885584,1752792659083,-4940.94,0.0002143,2]
[372885585,1752792659093,-853.37,0.0002143,2]
[372885586,1752792659102,-557.14,0.0002143,2]
[372885587,1752792659112,-460.0,0.0002143,2]
[372885588,1752792659121,-546.72,0.0002143,2]
[372885589,1752792659130,-491.03,0.00021431,2]
[372885590,1752792659139,-467.83,0.00021431,2]
[372885591,1752792659149,-577.94,0.00021431,2]
[372885592,1752792659158,-323.89491797,0.00021431,2]
[372885593,1752792659168,-1023.54,0.00021431,2]
[372885594,1752792659177,-460.0,0.00021431,2]
[372885595,1752792659186,-812.75338065,0.00021444,2]
[372885596,1752792659196,-500.0,0.00021484,2]
[372885597,1752792659205,-823.0,0.00021495,2]
[372885598,1752792659215,-200.84977966,0.00021499,2]
[372885599,1752792659224,-151.0,0.000215,2]
[372885600,1752792659234,-164.695544,0.000215,2]
[372885601,1752792659243,-164.695544,0.000215,2]
[372885602,1752792659252,-151.0,0.000215,2]
[372885603,1752792659261,-151.0,0.000215,3]
[372885604,1752792659271,-500.0,0.00021507,2]
[372885605,1752792659282,-151.0,0.00021507,2]
[372885606,1752792659292,-500.0,0.00021507,2]
[372885607,1752792659301,-151.0,0.00021507,2]
[372885608,1752792659310,-151.0,0.00021507,2]
[372885609,1752792659320,-500.0,0.00021507,2]
[372885610,1752792659329,-151.0,0.00021507,2]
[372885611,1752792659339,-217.13184513,0.00021507,2]
[372885612,1752792659350,-151.0,0.00021507,2]
[372885613,1752792659362,-252.61929863,0.00021507,2]
[372885614,1752792659372,-151.0,0.00021507,2]
[372885615,1752792659382,-151.0,0.00021507,2]
[372885616,1752792659392,-151.0,0.00021507,2]
[372885617,1752792659402,-151.0,0.00021507,2]
[372885618,1752792659411,-151.0,0.00021507,2]
[372885619,1752792659421,-151.0,0.00021507,2]
[372885620,1752792659431,-25000.0,0.00021507,2]
[372885621,1752792659440,-151.0,0.00021507,2]
[372885622,1752792659450,-17523.60212013,0.00021507,2]
[372885623,1752792659459,-151.0,0.00021507,2]
[372885624,1752792659472,-151.0,0.00021507,2]
[372885625,1752792659482,-151.0,0.00021507,2]
[372885626,1752792659492,-151.0,0.00021507,2]
[372885627,1752792659502,-151.0,0.00021507,2]
[372885628,1752792659513,-151.0,0.00021507,2]
[372885629,1752792659522,-151.0,0.00021507,2]
[372885630,1752792659532,-151.0,0.00021507,2]
[372885631,1752792659541,-207.4,0.00021507,2]
[372885632,1752792659551,-151.0,0.00021507,2]
[372885633,1752792659561,-151.0,0.00021507,2]
[372885634,1752792659570,-151.0,0.00021507,2]
[372885635,1752792659580,-233.882407,0.00021507,2]
[372885636,1752792659589,-151.0,0.00021507,2]
[372885637,1752792659598,-151.0,0.00021507,2]
[372885638,1752792659608,-762.430122,0.00021507,2]
[372885639,1752792659618,-762.430122,0.00021507,2]
[372885640,1752792659628,-151.0,0.00021507,2]
[372885641,1752792659637,-4000.0,0.00021519,4]
[372885642,1752792659646,-1912.9957299,0.00021604,2]
[372885643,1752792659656,-445.44958599,0.00021637,2]
[372885644,1752792659671,-309.48,0.00021674,2]
[372885645,1752792659680,-463.65,0.00021674,2]
[372885646,1752792659690,-1285.9,0.00021674,2]
[372885647,1752792659699,-3844.7,0.00021674,2]
[372885648,1752792659709,-2390.87,0.00021677,2]
[372885649,1752792659718,-883.0,0.00021677,2]
[372885650,1752792659805,-603.61,0.00021677,2]
[372885651,1752792659815,-2574.35,0.00021677,2]
[372885652,1752792659824,-460.0,0.00021677,2]
[372885653,1752792659836,-460.0,0.00021677,2]
[372885654,1752792659846,-1471.77,0.00021677,2]
[372885655,1752792659859,-558.89,0.00021701,2]
[372885656,1752792659871,-509.26,0.00021701,2]
[372885657,1752792659882,-504.22,0.00021701,2]
[372885658,1752792659892,-553.36,0.00021701,2]
[372885659,1752792659901,-460.0,0.00021701,2]
[372885660,1752792659911,-683.62,0.00021701,2]
[372885661,1752792659920,-651.31,0.00021701,2]
[372885662,1752792659930,-623.43,0.00021701,2]
[372885663,1752792659939,-1119.9,0.00021701,2]
[372885664,1752792659949,-620.89,0.00021701,2]
[372885665,1752792659959,-790.48,0.00021701,2]
[372885666,1752792659968,-709.94,0.00021701,2]
[372885667,1752792659978,-604.38,0.00021701,2]
[372885668,1752792659988,-460.0,0.00021704,2]
[372885669,1752792659997,-491.24,0.00021704,2]
[372885670,1752792660006,-614.19,0.00021704,2]
[372885671,1752792660016,-4940.94,0.00021704,2]
[372885672,1752792660025,-853.37,0.00021704,2]
[372885673,1752792660036,-557.14,0.00021704,2]
[372885674,1752792660045,-537.24,0.00021704,2]
[372885675,1752792660055,-546.72,0.00021704,2]
[372885676,1752792660065,-467.83,0.00021705,2]
[372885677,1752792660074,-577.94,0.00021705,2]
[372885678,1752792660084,-1023.54,0.00021705,2]
[372885679,1752792660093,-460.0,0.00021705,2]
[372885680,1752792660103,-332.056736,0.00021706,2]
[372885681,1752792660113,-332.056736,0.00021706,2]
[372885682,1752792660122,-500.0,0.00021712,2]
[372885683,1752792660132,-647.0,0.0002185,2]
[372885684,1752792660142,-2155.0,0.0002185,2]
[372885685,1752792660151,-968.0,0.0002185,2]
[372885686,1752792660161,-150.0,0.00021918,2]
[372885687,1752792660173,-3788.24965005,0.00021941,2]
[372885688,1752792660183,-4015.3536666,0.00021942,2]
[372885689,1752792660192,-1285.9,0.00021948,2]
[372885690,1752792660203,-3844.7,0.00021948,2]
[372885691,1752792660213,-2390.87,0.00021951,2]
[372885692,1752792660223,-883.0,0.00021951,2]
[372885693,1752792660234,-2574.35,0.00021951,2]
[372885694,1752792660244,-460.0,0.00021951,2]
[372885695,1752792660254,-254.29,0.00021951,2]
[372885696,1752792660264,-1471.77,0.00021951,2]
[372885697,1752792660274,-558.89,0.00021975,2]
[372885698,1752792660289,-509.26,0.00021975,2]
[372885699,1752792660299,-504.22,0.00021975,2]
[372885700,1752792660308,-553.36,0.00021975,2]
[372885701,1752792660318,-460.0,0.00021975,2]
[372885702,1752792660328,-683.62,0.00021975,2]
[372885703,1752792660338,-651.31,0.00021975,2]
[372885704,1752792660348,-623.43,0.00021975,2]
[372885705,1752792660358,-1119.9,0.00021975,2]
[372885706,1752792660367,-620.89,0.00021975,2]
[372885707,1752792660377,-790.48,0.00021975,2]
[372885708,1752792660387,-709.94,0.00021975,2]
[372885709,1752792660397,-604.38,0.00021975,2]
[372885710,1752792660407,-460.0,0.00021978,2]
[372885711,1752792660416,-491.24,0.00021978,2]
[372885712,1752792660426,-614.19,0.00021978,2]
[372885713,1752792660436,-4940.94,0.00021978,2]
[372885714,1752792660446,-853.37,0.00021978,2]
[372885715,1752792660455,-557.14,0.00021978,2]
[372885716,1752792660467,-467.83,0.00021979,2]
[372885717,1752792660478,-577.94,0.00021979,2]
[372885718,1752792660488,-1023.54,0.00021979,2]
[372885719,1752792660498,-561.5653351,0.00021979,2]
[372885720,1752792660508,-3820.41,0.00022,7]
[372885721,1752792660518,-31668.07,0.00022,2]
[372885722,1752792660529,-1581.09,0.00022,7]
[372885723,1752792660539,-15665.81,0.00022,7]
[372885724,1752792660550,-151.0,0.00022,7]
[372885725,1752792660559,-151.0,0.00022,7]
[372885726,1752792660568,-160.0,0.00022,7]
[372885727,1752792660578,-151.0,0.00022,7]
[372885728,1752792660587,-12607.95677342,0.00022,7]
[372885729,1752792660596,-154.0,0.00022,2]
[372885730,1752792660606,-1912.99572982,0.00022047,2]
[372885731,1752792660615,-1285.9,0.00022222,2]
[372885732,1752792660624,-3844.7,0.00022222,2]
[372885733,1752792660634,-2390.87,0.00022225,2]
[372885734,1752792660643,-883.0,0.00022225,2]
[372885735,1752792660652,-2574.35,0.00022225,2]
[372885736,1752792660662,-460.0,0.00022225,2]
[372885737,1752792660671,-1471.77,0.00022225,2]
[372885738,1752792660680,-558.89,0.00022249,2]
[372885739,1752792660690,-509.26,0.00022249,2]
[372885740,1752792660700,-504.22,0.00022249,2]
[372885741,1752792660709,-553.36,0.00022249,2]
[372885742,1752792660719,-257.71,0.00022249,2]
[372885743,1752792660729,-683.62,0.00022249,2]
[372885744,1752792660739,-651.31,0.00022249,2]
[372885745,1752792660748,-623.43,0.00022249,2]
[372885746,1752792660758,-1119.9,0.00022249,2]
[372885747,1752792660767,-620.89,0.00022249,2]
[372885748,1752792660776,-790.48,0.00022249,2]
[372885749,1752792660789,-709.94,0.00022249,2]
[372885750,1752792660798,-604.38,0.00022249,2]
[372885751,1752792660808,-460.0,0.00022252,2]
[372885752,1752792660818,-491.24,0.00022252,2]
[372885753,1752792660827,-614.19,0.00022252,2]
[372885754,1752792660836,-4940.94,0.00022252,2]
[372885755,1752792660845,-853.37,0.00022252,2]
[372885756,1752792660855,-557.14,0.00022252,2]
[372885757,1752792660864,-467.83,0.00022253,2]
[372885758,1752792660873,-577.94,0.00022253,2]
[372885759,1752792660883,-1023.54,0.00022253,2]
[372885760,1752792660892,-151.0,0.000224,8]
[372885761,1752792660902,-300.0,0.00022466,2]
[372885762,1752792660911,-1912.99572982,0.00022489,2]
[372885763,1752792660921,-1285.9,0.00022496,2]
[372885764,1752792660931,-3844.7,0.00022496,2]
[372885765,1752792660940,-2390.87,0.00022499,2]
[372885766,1752792660949,-883.0,0.00022499,2]
[372885767,1752792660959,-2574.35,0.00022499,2]
[372885768,1752792660968,-602.41,0.00022499,2]
[372885769,1752792660977,-1471.77,0.00022499,2]
[372885770,1752792660987,-1006.43,0.000225,2]
[372885771,1752792660996,-558.89,0.00022523,2]
[372885772,1752792661006,-509.26,0.00022523,2]
[372885773,1752792661015,-504.22,0.00022523,2]
[372885774,1752792661025,-553.36,0.00022523,2]
[372885775,1752792661039,-683.62,0.00022523,2]
[372885776,1752792661048,-651.31,0.00022523,2]
[372885777,1752792661058,-623.43,0.00022523,2]
[372885778,1752792661067,-1119.9,0.00022523,2]
[372885779,1752792661077,-620.89,0.00022523,2]
[372885780,1752792661086,-790.48,0.00022523,2]
[372885781,1752792661098,-709.94,0.00022523,2]
[372885782,1752792661108,-604.38,0.00022523,2]
[372885783,1752792661118,-203.36,0.00022526,2]
[372885784,1752792661128,-491.24,0.00022526,2]
[372885785,1752792661138,-614.19,0.00022526,2]
[372885786,1752792661218,-4940.94,0.00022526,2]
[372885787,1752792661229,-853.37,0.00022526,2]
[372885788,1752792661239,-557.14,0.00022526,2]
[372885789,1752792661248,-467.83,0.00022527,2]
[372885790,1752792661258,-577.94,0.00022527,2]
[372885791,1752792661267,-1023.54,0.00022527,2]
[372885792,1752792661277,-500.0,0.00022558,2]
[372885793,1752792661288,-1286.02003817,0.0002277,2]
[372885794,1752792661297,-3844.75649163,0.0002277,2]
[372885795,1752792661307,-2390.96912392,0.00022773,2]
[372885796,1752792661318,-883.14754198,0.00022773,2]
[372885797,1752792661327,-2574.44259446,0.00022773,2]
[372885798,1752792661338,-1471.98143,0.00022773,2]
[372885799,1752792661348,-558.9,0.00022796,2]
[372885800,1752792661359,-509.27967311,0.00022796,2]
[372885801,1752792661369,-504.31424337,0.00022796,2]
[372885802,1752792661378,-553.4432407,0.00022796,2]
[372885803,1752792661388,-683.66383468,0.00022796,2]
[372885804,1752792661397,-651.49,0.00022796,2]
[372885805,1752792661407,-623.48430456,0.00022796,2]
[372885806,1752792661417,-1120.11,0.00022796,2]
[372885807,1752792661427,-621.02,0.00022796,2]
[372885808,1752792661437,-790.51,0.00022796,2]
[372885809,1752792661447,-710.07,0.00022796,2]
[372885810,1752792661456,-604.38483807,0.00022796,2]
[372885811,1752792661468,-491.4,0.000228,2]
[372885812,1752792661478,-614.2345957,0.000228,2]
[372885813,1752792661488,-4941.1409629,0.000228,2]
[372885814,1752792661497,-853.58,0.000228,2]
[372885815,1752792661507,-557.25,0.000228,2]
[372885816,1752792661516,-468.0519003,0.00022801,2]
[372885817,1752792661526,-578.1222192,0.00022801,2]
[372885818,1752792661538,-1023.63311645,0.00022801,2]
[372885819,1752792661548,-151.0,0.00022802,7]
[372885820,1752792661558,-500.0,0.00022808,2]
[372885821,1752792661568,-215.0738,0.00022876,2]
[372885822,1752792661577,-501.96,0.00022897,7]
[372885823,1752792661587,-505.92,0.00022915,6]
[372885824,1752792661596,-1912.99572982,0.00022932,2]
[372885825,1752792661606,-445.44958599,0.00022954,2]
[372885826,1752792661616,-501.96,0.00022997,5]
[372885827,1752792661625,-151.0,0.0002307,7]
[372885828,1752792661636,-164.695544,0.0002307,7]
[372885829,1752792661645,-164.695544,0.0002307,7]
[372885830,1752792661669,-151.0,0.0002307,7]
[372885831,1752792661679,-501.96,0.00023097,6]
[372885832,1752792661688,-501.96,0.00023197,5]
[372885833,1752792661697,-151.0,0.000232,6]
[372885834,1752792661706,-339.155972,0.00023207,2]
[372885835,1752792661715,-501.96,0.00023297,3]
[372885836,1752792661725,-31668.07,0.000233,2]
[372885837,1752792661735,-1581.09,0.000233,7]
[372885838,1752792661745,-15665.81,0.000233,7]
[372885839,1752792661754,-151.0,0.000233,7]
[372885840,1752792661764,-166.912252,0.000233,7]
[372885841,1752792661773,-332.056736,0.000233,7]
[372885842,1752792661784,-332.056736,0.000233,7]
[372885843,1752792661793,-1912.99572982,0.00023374,2]
[372885844,1752792661802,-501.96,0.00023397,4]
[372885845,1752792661812,-500.77775609,0.000234,2]
[372885846,1752792661822,-3820.41,0.000234,7]
[372885847,1752792661833,-2200.0,0.00023429,2]
[372885848,1752792661842,-1152.0,0.0002349,2]
[372885849,1752792661853,-501.96,0.00023497,7]
[372885850,1752792661863,-501.96,0.00023597,6]
[372885851,1752792661874,-151.0,0.00023597,7]
[372885852,1752792661883,-151.0,0.00023597,7]
[372885853,1752792661895,-167.121434,0.00023597,7]
[372885854,1752792661905,-167.121434,0.00023597,7]
[372885855,1752792661915,-279.816247,0.00023597,7]
[372885856,1752792661925,-279.816247,0.00023597,7]
[372885857,1752792661935,-500.0,0.00023686,2]
[372885858,1752792661944,-501.96,0.00023697,7]
[372885859,1752792661953,-762.430122,0.00023744,7]
[372885860,1752792661964,-762.430122,0.00023744,7]
[372885861,1752792661973,-178.577719,0.00023744,2]
[372885862,1752792661983,-501.96,0.00023797,4]
[372885863,1752792661992,-1912.99572982,0.00023817,2]
[372885864,1752792662001,-501.96,0.00023897,4]
[372885865,1752792662011,-154.815822,0.000239,6]
[372885866,1752792662020,-150.0,0.000239,2]
[372885867,1752792662033,-500.0,0.00023904,2]
[372885868,1752792662043,-154.815822,0.00023942,2]
[372885869,1752792662053,-501.96,0.00023997,6]
[372885870,1752792662062,-160.0,0.00024,7]
[372885871,1752792662072,-1000.0,0.00024,2]
[372885872,1752792662081,-839.15451687,0.00024,7]
[372885873,1752792662091,-160.0,0.00024,7]
[372885874,1752792662100,-215.59244943,0.00024,7]
[372885875,1752792662110,-525.67742785,0.00024,7]
[372885876,1752792662119,-230.85589339,0.00024,7]
[372885877,1752792662128,-501.96,0.00024097,4]
[372885878,1752792662138,-151.0,0.000241,9]
[372885879,1752792662148,-1439.61129952,0.00024156,2]
[372885880,1752792662157,-501.96,0.00024197,2]
[372885881,1752792662167,-223.0315306,0.00024245,2]
[372885882,1752792662176,-1912.99572982,0.00024259,2]
[372885883,1752792662185,-445.44958599,0.0002427,2]
[372885884,1752792662195,-501.96,0.00024297,3]
[372885885,1752792662205,-502.08072339,0.00024397,3]
[372885886,1752792662214,-31668.07,0.000244,2]
[372885887,1752792662224,-1581.09,0.000244,7]
[372885888,1752792662233,-15665.81,0.000244,7]
[372885889,1752792662242,-151.0,0.000244,7]
[372885890,1752792662252,-151.0,0.000244,7]
[372885891,1752792662261,-151.0,0.000244,7]
[372885892,1752792662271,-772.555685,0.00024401,8]
[372885893,1752792662282,-1000.0,0.000245,2]
[372885894,1752792662293,-500.0,0.0002463,2]
[372885895,1752792662302,-151.0,0.0002465,7]
[372885896,1752792662312,-164.695544,0.0002465,7]
[372885897,1752792662322,-164.695544,0.0002465,7]
[372885898,1752792662332,-151.0,0.0002465,7]
[372885899,1752792662342,-3820.41,0.000247,7]
[372885900,1752792662351,-3304.37008719,0.000247,5]
[372885901,1752792662360,-1912.99572982,0.00024702,2]
[372885902,1752792662370,-429.1687796,0.00024712,2]
[372885903,1752792662379,-168.0,0.00024746,2]
[372885904,1752792662388,-151.0,0.00024756,2]
[372885905,1752792662397,-245.0,0.00024756,2]
[372885906,1752792662407,-151.0,0.00024756,2]
[372885907,1752792662416,-151.0,0.00024756,2]
[372885908,1752792662425,-780.0,0.00024756,2]
[372885909,1752792662435,-151.0,0.00024756,2]
[372885910,1752792662445,-248.34584934,0.00024756,2]
[372885911,1752792662522,-219.8559037,0.00024756,2]
[372885912,1752792662534,-500.0,0.00024756,2]
[372885913,1752792662545,-423.0,0.00024756,2]
[372885914,1752792662555,-151.0,0.00024756,2]
[372885915,1752792662564,-500.0,0.00024756,2]
[372885916,1752792662573,-151.0,0.00024756,2]
[372885917,1752792662583,-151.0,0.00024756,2]
[372885918,1752792662593,-151.0,0.00024756,2]
[372885919,1752792662602,-151.0,0.00024756,2]
[372885920,1752792662612,-1658.665273,0.0002476,5]
[372885921,1752792662621,-1000.0,0.0002478,5]
[372885922,1752792662631,-2000.0,0.000248,2]
[372885923,1752792662640,-1000.0,0.000248,5]
[372885924,1752792662649,-741.35535534,0.000248,2]
[372885925,1752792662659,-159.5390662,0.00024822,2]
[372885926,1752792662673,-576.2009174,0.00024822,2]
[372885927,1752792662683,-177.9047646,0.00024822,2]
[372885928,1752792662692,-390.3536995,0.00024849,2]
[372885929,1752792662701,-647.0,0.0002485,2]
[372885930,1752792662711,-2155.0,0.0002485,2]
[372885931,1752792662720,-968.0,0.0002485,2]
[372885932,1752792662731,-500.0,0.0002487,2]
[372885933,1752792662740,-460.0,0.00024899,2]
[372885934,1752792662750,-460.0,0.00024899,2]
[372885935,1752792662759,-349.85264268,0.00024899,2]
[372885936,1752792662769,-2386.89,0.00024899,2]
[372885937,1752792662778,-1391.15,0.00024899,2]
[372885938,1752792662792,-460.0,0.00024899,2]
[372885939,1752792662802,-505.85,0.00024899,2]
[372885940,1752792662812,-460.0,0.00024899,2]
[372885941,1752792662822,-804.87,0.00024899,2]
[372885942,1752792662831,-460.0,0.00024899,2]
[372885943,1752792662840,-460.0,0.00024899,2]
[372885944,1752792662850,-5152.9,0.00024899,2]
[372885945,1752792662859,-1806.81,0.00024899,2]
[372885946,1752792662869,-460.0,0.00024899,2]
[372885947,1752792662879,-151.0,0.000249,7]
[372885948,1752792662888,-164.695544,0.000249,7]
[372885949,1752792662898,-164.695544,0.000249,7]
[372885950,1752792662908,-151.0,0.000249,7]
[372885951,1752792662918,-160.671446,0.000249,7]
[372885952,1752792662927,-151.0,0.000249,7]
[372885953,1752792662937,-151.0,0.000249,7]
[372885954,1752792662947,-151.0,0.000249,7]
[372885955,1752792662957,-151.0,0.000249,7]
[372885956,1752792662967,-151.0,0.000249,7]
[372885957,1752792662976,-151.0,0.000249,7]
[372885958,1752792662986,-289.936147,0.000249,7]
[372885959,1752792662996,-289.936147,0.000249,7]
[372885960,1752792663006,-762.430122,0.000249,7]
[372885961,1752792663015,-762.430122,0.000249,7]
[372885962,1752792663025,-167.121434,0.000249,7]
[372885963,1752792663038,-167.121434,0.000249,7]
[372885964,1752792663049,-151.0,0.000249,7]
[372885965,1752792663059,-238.590108,0.000249,7]
[372885966,1752792663068,-238.590108,0.000249,7]
[372885967,1752792663078,-151.381905,0.000249,7]
[372885968,1752792663088,-245458.363718,0.000249,2]
[372885969,1752792663098,-690.23436042,0.000249,2]
[372885970,1752792663109,-332.056736,0.000249,7]
[372885971,1752792663119,-332.056736,0.000249,7]
[372885972,1752792663129,-151.0,0.000249,7]
[372885973,1752792663140,-279.816247,0.000249,7]
[372885974,1752792663149,-279.816247,0.000249,7]
[372885975,1752792663159,-151.0,0.000249,7]
[372885976,1752792663169,-168.0,0.00024921,2]
[372885977,1752792663178,-1334.91090323,0.00024979,32]
[372885978,1752792663188,-1127.491315,0.0002498,5]
[372885979,1752792663198,-500.0,0.00025,2]
[372885980,1752792663208,-10525.32756726,0.00025,60]
[372885981,1752792663217,-114970.41619453,0.00025,30]
[372885982,1752792663227,-72307.47231615,0.00025,30]
[372885983,1752792663237,-160.98799867,0.00025,5]
[372885984,1752792663247,-151.0,0.00025,7]
[372885985,1752792663256,-151.0,0.00025,7]
[372885986,1752792663266,-151.0,0.00025,7]
[372885987,1752792663276,-151.0,0.00025,7]
[372885988,1752792663295,-151.0,0.00025,7]
[372885989,1752792663304,-151.0,0.00025,7]
[372885990,1752792663315,-151.0,0.00025,7]
[372885991,1752792663325,-1000.0,0.00025,5]
[372885992,1752792663334,-151.0,0.00025,7]
[372885993,1752792663344,-289.936147,0.00025,7]
[372885994,1752792663354,-289.936147,0.00025,7]
[372885995,1752792663363,-154.815822,0.00025,30]
[372885996,1752792663374,-1000.0,0.00025,2]
[372885997,1752792663385,-839.15451687,0.00025,30]
[372885998,1752792663395,-839.15451687,0.00025,7]
[372885999,1752792663612,-250.0,0.00025,2]
[372886000,1752792663623,-238.590108,0.00025,7]
[372886001,1752792663635,-238.590108,0.00025,7]
[372886002,1752792663646,-200.0,0.00025,30]
[372886003,1752792663655,-200.0,0.00025,30]
[372886004,1752792663665,-200.0,0.00025,30]
[372886005,1752792663675,-200.0,0.00025,30]
[372886006,1752792663685,-203.101793,0.00025,2]
[372886007,1752792663695,-160.0,0.00025,7]
[372886008,1752792663705,-525.67742785,0.00025,30]
[372886009,1752792663715,-525.67742785,0.00025,7]
[372886010,1752792663725,-230.85589339,0.00025,30]
[372886011,1752792663734,-407888.14,0.00025004,10]
[372886012,1752792663744,-15888.55,0.00025004,10]
[372886013,1752792663754,-152482.98,0.00025004,10]
[372886014,1752792663763,-168.0,0.00025025,2]
[372886015,1752792663773,-151.0,0.0002503,2]
[372886016,1752792663784,-151.0,0.0002503,2]
[372886017,1752792663793,-151.0,0.0002503,2]
[372886018,1752792663803,-780.0,0.0002503,2]
[372886019,1752792663813,-151.0,0.0002503,2]
[372886020,1752792663822,-500.0,0.0002503,2]
[372886021,1752792663832,-423.0,0.0002503,2]
[372886022,1752792663842,-151.0,0.0002503,2]
[372886023,1752792663852,-500.0,0.0002503,2]